bitfinex/quotes_ETHUSD_20250217
["timestamp","ask_amount","ask_price","bid_price","bid_amount"]
[1739792037449,3.63393,2751.9,2751.4,4.44416]
[1739792037649,3.0,2751.8,2751.4,4.44416]
[1739792038124,8.9737,2752.1,2751.4,8.65239294]
[1739792038325,3.6337,2752.1,2751.6,3.63424]
[1739792038868,3.63372,2752.0,2751.6,3.63424]
[1739792039240,3.63372,2752.0,2751.5,0.8249]
[1739792039441,3.63372,2752.0,2751.5,4.45925]
[1739792039778,3.63372,2752.0,2751.6,1.23018729]
[1739792040433,3.63388,2751.9,2751.6,1.23018729]
[1739792040769,3.6342,2751.7,2751.5,0.8249]
[1739792041472,3.6342,2751.7,2751.3,0.7568]
[1739792041715,3.63433,2751.6,2751.3,0.7568]
[1739792042480,0.0075,2751.7,2751.3,0.7568]
[1739792042675,3.63463,2751.4,2751.0,0.8155]
[1739792042978,3.63432,2751.6,2751.1,3.63483]
[1739792043530,7.26869,2751.6,2751.0,4.45046]
[1739792043744,3.63432,2751.6,2751.0,8.0854]
[1739792043974,0.0075,2751.7,2751.0,0.8155]
[1739792044182,5.34,2751.8,2751.3,0.8155]
[1739792044491,3.40034594,2752.8,2751.1,3.40034594]
[1739792044492,3.63313,2752.5,2751.7,4.21584594]
[1739792044629,3.63313,2752.5,2751.9,3.63375]
[1739792045185,0.7759,2752.6,2752.1,3.6335]
[1739792045390,3.63293,2752.6,2752.2,0.789]
[1739792046231,0.015,2753.0,2752.1,0.8159]
[1739792046430,3.633,2752.6,2752.1,4.44939]
[1739792046931,3.63331,2752.4,2752.1,0.8159]
[1739792047126,3.63359,2752.1,2751.8,0.7617]
[1739792047357,3.63375,2752.0,2751.5,0.7617]
[1739792047531,3.63375,2752.0,2751.5,5.86071157]
[1739792047730,3.63401,2751.8,2751.5,0.7617]
[1739792048036,3.63401,2751.8,2751.1,7.03519594]
[1739792048037,3.63431,2751.6,2751.2,0.8275]
[1739792048367,3.63442,2751.5,2751.0,4.46802]
[1739792048532,7.26864,2751.6,2751.0,4.46802]
[1739792048731,7.26866,2751.6,2751.1,0.446802]
[1739792048964,3.63431,2751.6,2751.1,0.446802]
[1739792050086,3.63419,2751.7,2751.1,3.84714794]
[1739792050295,5.34,2752.1,2751.6,3.63416]
[1739792050579,5.34,2752.1,2751.6,4.41836059]
[1739792051151,5.34,2752.1,2751.6,4.41834059]
[1739792051476,5.34,2752.1,2751.7,3.63406]
[1739792051831,4.41569,2752.7,2751.8,0.7544]
[1739792053287,3.63313,2752.5,2751.8,0.7544]
[1739792053468,7.26628,2752.5,2751.9,4.04931459]
[1739792053785,3.0,2752.6,2752.0,3.6337]
[1739792053984,3.63307,2752.5,2752.1,0.7673]
[1739792054193,0.8016,2752.9,2752.1,0.7673]
[1739792054367,3.63238,2753.1,2752.5,0.7752]
[1739792054704,3.6324,2753.0,2752.5,4.40824]
[1739792055252,3.6324,2753.0,2752.5,0.7752]
[1739792055654,3.63253,2752.9,2752.5,0.7752]
[1739792055876,3.8117,2753.3,2752.5,0.7752]
[1739792056077,3.63242,2753.0,2752.5,0.7752]
[1739792057394,3.63242,2753.0,2752.5,4.40825]
[1739792057591,6.63213,2753.2,2752.7,3.63271]
[1739792057770,6.63213,2753.2,2752.6,3.63284]
[1739792058269,3.63228,2753.1,2752.5,0.7752]
[1739792058468,3.63253,2752.9,2752.5,0.7752]
[1739792059473,3.63269,2752.8,2752.5,0.7752]
[1739792059890,7.26519,2752.9,2752.5,0.7752]
[1739792060198,3.63288,2752.7,2752.3,0.811]
[1739792060420,0.015,2752.9,2752.3,0.811]
[1739792060604,3.63314,2752.5,2752.1,0.811]
[1739792060908,3.63326,2752.4,2752.1,0.811]
[1739792061110,3.63344,2752.3,2751.9,0.811]
[1739792061439,3.63338,2752.3,2751.9,0.811]
[1739792061563,3.63371,2752.1,2751.9,0.811]
[1739792061769,3.63371,2752.1,2751.6,0.7513]
[1739792061968,3.63367,2752.1,2751.6,0.7513]
[1739792062194,3.63373,2752.0,2751.6,0.7513]
[1739792062403,3.63403,2751.8,2751.3,0.7992]
[1739792063302,3.63425,2751.6,2751.3,0.7992]
[1739792063506,3.63445,2751.5,2751.1,0.8241]
[1739792063706,3.63445,2751.5,2751.1,1.270017]
[1739792064271,3.63451,2751.4,2750.8,7.03555594]
[1739792064568,3.63451,2751.4,2750.8,7.79975594]
[1739792065176,3.63451,2751.4,2750.8,7.79974594]
[1739792065377,7.26859,2751.6,2750.9,3.63508]
[1739792065600,3.63425,2751.6,2751.0,3.63496]
[1739792065801,3.63403,2751.8,2751.3,0.832]
[1739792067378,3.015,2751.9,2751.3,0.832]
[1739792067572,3.63398,2751.8,2751.3,0.832]
[1739792067773,3.63412,2751.7,2751.3,0.832]
[1739792068069,3.63439,2751.5,2751.3,0.832]
[1739792068462,3.63439,2751.5,2751.0,0.8322]
[1739792068808,3.63439,2751.5,2751.0,5.61750159]
[1739792069309,3.63417,2751.7,2751.0,5.61740159]
[1739792069666,3.63398,2751.8,2751.3,3.63463]
[1739792069867,3.63414,2751.7,2751.2,3.63473]
[1739792070803,3.63428,2751.6,2751.0,9.25234159]
[1739792070993,3.63446,2751.5,2751.0,5.61740159]
[1739792071858,3.63428,2751.6,2751.1,3.63488]
[1739792072013,0.015,2751.7,2751.1,3.6349]
[1739792072217,3.64921,2751.7,2751.1,3.6349]
[1739792072417,3.63425,2751.6,2751.1,3.6349]
[1739792072788,7.26858,2751.6,2751.1,3.6349]
[1739792072990,0.0075,2751.5,2750.7,0.756]
[1739792073308,7.27002,2751.1,2750.7,0.756]
[1739792073624,3.63499,2751.1,2750.7,0.756]
[1739792074129,0.015,2751.2,2750.5,4.15804594]
[1739792074328,3.6349,2751.1,2750.5,0.7577]
[1739792074508,3.63512,2751.0,2750.5,0.7577]
[1739792074712,3.63504,2751.0,2750.5,0.7577]
[1739792075227,3.6352,2750.9,2750.5,4.39339]
[1739792075372,3.6352,2750.9,2750.5,5.6083213]
[1739792075793,3.6353,2750.8,2750.5,0.7577]
[1739792076189,3.6352,2750.9,2750.3,4.18144594]
[1739792076405,3.63536,2750.8,2750.0,7.85580594]
[1739792076621,3.63555,2750.7,2750.1,4.42175059]
[1739792077031,3.63536,2750.8,2750.3,3.63593]
[1739792077225,3.8148,2750.9,2750.4,3.63582]
[1739792077587,0.015,2750.8,2750.1,4.42173059]
[1739792077886,3.65031,2750.8,2750.2,3.63601]
[1739792078092,7.28571,2750.8,2750.2,3.63601]
[1739792078343,3.65031,2750.8,2750.1,4.50027765]
[1739792078553,3.63552,2750.7,2750.1,4.50027765]
[1739792078696,3.63578,2750.5,2750.1,0.86412765]
[1739792078896,3.63578,2750.5,2750.0,4.21954594]
[1739792079110,3.63578,2750.5,2750.0,7.85586594]
[1739792079396,3.63558,2750.6,2750.1,3.63619]
[1739792079730,7.27126,2750.6,2750.1,3.63619]
[1739792080120,3.63575,2750.5,2750.0,4.21954594]
[1739792080300,3.63575,2750.5,2750.0,9.00506053]
[1739792081142,3.63547,2750.7,2750.1,3.63621]
[1739792081442,3.63547,2750.7,2750.1,3.63615]
[1739792081601,3.6356,2750.6,2750.1,3.63615]
[1739792081805,3.6358,2750.5,2750.0,5.36878053]
[1739792082052,3.63577,2750.5,2750.0,1.96843459]
[1739792082547,3.63577,2750.5,2750.0,5.60476459]
[1739792082847,3.63567,2750.6,2750.0,5.60476459]
[1739792083043,3.63578,2750.5,2750.0,5.60476459]
[1739792083262,3.63598,2750.3,2750.0,0.8192]
[1739792083560,3.63593,2750.4,2750.0,0.8192]
[1739792083760,3.63619,2750.2,2750.0,0.8192]
[1739792084159,3.63619,2750.2,2749.6,3.6368]
[1739792084160,3.63635,2750.1,2749.6,3.6368]
[1739792084386,3.63635,2750.1,2749.6,4.70422859]
[1739792084550,3.63619,2750.2,2749.6,4.70421859]
[1739792084737,7.27238,2750.2,2749.6,4.70421859]
[1739792085059,3.63626,2750.1,2749.6,4.70421859]
[1739792085266,7.27237,2750.2,2749.7,3.63674]
[1739792085466,3.63618,2750.2,2749.7,3.63674]
[1739792085638,3.63626,2750.1,2749.6,4.70428859]
[1739792086227,3.65109,2750.3,2749.7,3.63667]
[1739792086527,3.63611,2750.2,2749.7,3.63667]
[1739792088362,3.63611,2750.2,2749.7,3.63666]
[1739792088665,5.34,2750.5,2750.0,4.20114594]
[1739792088882,5.34,2750.5,2750.4,4.43663]
[1739792089182,5.34,2750.5,2750.4,0.8008]
[1739792089468,8.97571,2750.5,2750.2,0.8008]
[1739792089825,5.34,2750.5,2750.2,0.8008]
[1739792090025,5.34,2750.5,2750.3,3.63596]
[1739792090887,9.75373,2751.3,2750.6,4.44557]
[1739792091189,3.63442,2751.5,2751.0,0.8101]
[1739792091412,3.63452,2751.4,2751.0,0.8101]
[1739792091888,3.63442,2751.5,2751.0,0.8101]
[1739792092122,3.63453,2751.4,2751.0,0.8101]
[1739792092589,3.63466,2751.3,2751.0,0.8101]
[1739792093695,3.63451,2751.4,2751.0,0.8101]
[1739792093892,3.0,2750.9,2750.3,0.7875]
[1739792094098,3.0,2750.9,2750.5,3.6357]
[1739792094430,3.6496,2751.4,2750.8,0.7875]
[1739792094605,0.7906,2751.5,2750.9,4.077431]
[1739792094897,3.0,2751.4,2750.9,3.63515]
[1739792095595,3.63459,2751.4,2750.9,3.63515]
[1739792096704,3.0,2751.5,2750.9,3.6351]
[1739792096919,3.0,2751.5,2751.1,3.63481]
[1739792097586,6.6344,2751.5,2750.9,4.07732]
[1739792097797,6.6344,2751.5,2751.0,3.63502]
[1739792098092,3.0,2751.6,2751.1,3.63478]
[1739792098397,3.0,2751.6,2751.2,0.8228]
[1739792098821,6.63432,2751.6,2751.2,0.8228]
[1739792099302,3.64912,2751.7,2751.2,4.4575]
[1739792099473,3.0,2751.8,2751.2,1.632028]
[1739792099675,3.63412,2751.7,2751.2,4.4575]
[1739792099877,0.015,2751.8,2751.3,3.63456]
[1739792100098,0.015,2751.8,2751.2,7.85790594]
[1739792100260,3.015,2751.8,2751.2,7.85790594]
[1739792100462,6.64905,2751.8,2751.3,3.63459]
[1739792100999,6.64905,2751.8,2751.2,11.49261594]
[1739792101295,3.63429,2751.6,2751.2,0.8228]
[1739792101597,3.015,2751.8,2751.0,3.63499]
[1739792101598,0.7546,2751.7,2751.0,0.7747]
[1739792101912,3.63452,2751.4,2751.0,0.7747]
[1739792103024,3.63486,2751.2,2751.0,0.7747]
[1739792103236,3.63486,2751.2,2749.7,3.83674]
[1739792103237,3.6349,2751.1,2750.7,0.8003]
[1739792103395,8.98928,2751.6,2750.8,7.27051]
[1739792103396,3.6346,2751.4,2750.8,7.27051]
[1739792103600,5.34,2751.6,2751.3,0.8003]
[1739792103810,5.34,2751.6,2751.5,3.63438]
[1739792104016,9.79848,2752.2,2751.7,3.63407]
[1739792104213,9.79848,2752.2,2751.6,3.63416]
[1739792104214,13.43203,2752.2,2751.6,3.63416]
[1739792104410,0.015,2752.1,2751.6,7.26833]
[1739792104618,0.015,2752.1,2751.6,3.63416]
[1739792105131,3.63386,2751.9,2751.4,3.63441]
[1739792105932,0.015,2751.6,2751.1,0.8003]
[1739792106231,3.8249,2751.9,2751.4,4.4347]
[1739792106432,3.0,2751.9,2751.4,4.4347]
[1739792106595,6.6339,2751.9,2751.4,4.4347]
[1739792106931,3.63391,2751.9,2751.4,4.43473]
[1739792107105,3.63392,2751.9,2751.4,4.43478]
[1739792107630,3.63396,2751.9,2751.4,0.8003]
[1739792109038,3.63396,2751.9,2751.4,4.4348]
[1739792109196,3.63385,2751.9,2751.4,0.8003]
[1739792109594,3.63385,2751.9,2751.2,3.63466]
[1739792109595,0.015,2751.8,2751.0,3.40034594]
[1739792109760,3.63436,2751.6,2751.1,3.63488]
[1739792110076,4.41253,2751.7,2751.2,3.63477]
[1739792110551,5.24,2752.0,2751.3,7.79429594]
[1739792110751,3.63394,2751.9,2751.4,0.77942959]
[1739792111165,3.63399,2751.8,2751.4,4.41393959]
[1739792111500,3.63399,2751.8,2751.3,0.7594]
[1739792111501,7.26805,2751.8,2751.3,0.7594]
[1739792111649,4.29159,2751.8,2751.3,0.7594]
[1739792111849,3.63411,2751.7,2751.3,0.7594]
[1739792112259,4.44198,2751.8,2751.3,4.39396]
[1739792112586,0.808,2751.8,2751.4,3.63448]
[1739792113471,0.808,2751.8,2751.3,1.562269]
[1739792113671,4.44208,2751.8,2751.3,1.562269]
[1739792114300,3.6342,2751.7,2751.3,1.562269]
[1739792114462,3.6342,2751.7,2751.3,0.7594]
[1739792115306,4.44208,2751.8,2751.3,0.7594]
[1739792115517,4.44208,2751.8,2751.3,4.39401]
[1739792116620,4.44208,2751.8,2751.3,0.7594]
[1739792116819,0.015,2751.7,2751.1,0.8247]
[1739792117097,3.63448,2751.5,2751.1,0.8247]
[1739792117289,3.63456,2751.4,2751.1,0.8247]
[1739792117688,3.63456,2751.4,2750.9,0.8247]
[1739792117895,3.63466,2751.3,2750.9,0.8247]
[1739792118063,3.63486,2751.2,2750.6,4.46021]
[1739792118403,3.64971,2751.3,2750.8,3.63526]
[1739792118603,3.63482,2751.2,2750.6,7.86053594]
[1739792118804,3.63493,2751.1,2750.6,4.46017]
[1739792118980,3.63498,2751.1,2750.6,0.8247]
[1739792119386,0.015,2750.9,2750.2,4.4125]
[1739792119716,3.015,2750.9,2750.4,3.63576]
[1739792119882,6.6502,2750.9,2750.4,3.63576]
[1739792121513,3.015,2750.9,2750.2,4.41254]
[1739792121715,3.015,2750.9,2750.3,3.63587]
[1739792121919,3.015,2750.9,2750.4,3.63576]
[1739792122081,6.65019,2750.9,2750.4,3.63576]
[1739792122504,6.65019,2750.9,2750.3,7.03621594]
[1739792122817,3.63538,2750.8,2750.3,7.03621594]
[1739792123207,6.65019,2750.9,2750.3,7.03621594]
[1739792123523,6.65019,2750.9,2750.3,10.67210594]
[1739792123691,3.90969,2751.3,2750.4,0.7663]
[1739792123890,3.0,2751.2,2750.7,3.63536]
[1739792124549,3.0,2751.2,2750.8,3.63521]
[1739792124713,0.015,2751.2,2750.9,0.8173]
[1739792124876,3.63469,2751.3,2750.9,0.8173]
[1739792125301,9.63116,2751.5,2750.9,0.8173]
[1739792125302,3.0,2751.4,2751.0,3.63497]
[1739792125507,5.24,2751.5,2750.9,0.8173]
[1739792125709,0.015,2751.4,2751.0,3.63493]
[1739792125903,0.015,2751.4,2750.9,8.08743]
[1739792126116,0.015,2751.4,2750.9,4.45234]
[1739792126621,3.63472,2751.3,2750.9,0.8173]
[1739792126980,0.015,2751.4,2751.0,3.63503]
[1739792127318,3.64953,2751.4,2750.9,4.45247]
[1739792127515,0.015,2751.4,2750.9,4.45247]
[1739792129127,0.015,2751.4,2750.9,0.8173]
[1739792129431,3.63478,2751.2,2750.9,0.8173]
[1739792129632,3.63478,2751.2,2750.7,4.40435]
[1739792129831,3.63486,2751.2,2750.7,2.02694796]
[1739792130041,4.41433,2751.3,2750.8,3.63529]
[1739792130591,3.64977,2751.2,2750.7,4.40436]
[1739792130797,0.015,2751.2,2750.8,3.63528]
[1739792131051,0.015,2751.2,2750.7,4.40436]
[1739792131357,3.6498,2751.2,2750.7,4.40436]
[1739792132205,3.63492,2751.1,2750.7,4.40436]
[1739792132450,3.63492,2751.1,2750.8,0.18302144]
[1739792132633,3.63492,2751.1,2750.7,4.40436]
[1739792132938,3.63492,2751.1,2750.9,0.18298696]
[1739792133149,3.63492,2751.1,2750.7,4.40436]
[1739792133612,3.64978,2751.2,2750.8,0.18298696]
[1739792133813,3.64978,2751.2,2750.7,4.40435]
[1739792134035,3.64978,2751.2,2750.9,0.18298696]
[1739792134201,3.64978,2751.2,2750.7,4.40435]
[1739792134571,3.64978,2751.2,2751.0,0.18298696]
[1739792134700,0.015,2751.2,2750.8,3.63529]
[1739792134897,3.0,2751.4,2751.1,0.18298696]
[1739792135137,3.0,2751.4,2751.1,4.40742]
[1739792135316,0.1488,2751.5,2751.3,3.63462]
[1739792135871,0.1488,2751.5,2751.4,0.18298696]
[1739792136058,0.1488,2751.5,2751.4,3.81749696]
[1739792136708,0.1488,2751.5,2751.4,0.18298696]
[1739792137333,0.1488,2751.5,2751.4,0.92821466]
[1739792137653,0.1488,2751.5,2751.4,4.62289696]
[1739792137856,0.1488,2751.5,2751.4,0.98838696]
[1739792138034,0.1488,2751.5,2751.4,0.18298696]
[1739792139406,0.1488,2751.5,2751.2,4.46157]
[1739792139606,0.1488,2751.5,2751.4,0.1827594]
[1739792139856,0.1488,2751.5,2751.2,4.46157]
[1739792140020,0.1488,2751.5,2751.4,0.1827594]
[1739792140215,0.1488,2751.5,2751.2,0.8268]
[1739792140420,0.1488,2751.5,2751.4,0.1827594]
[1739792140631,0.1488,2751.5,2751.2,0.8268]
[1739792140836,0.1488,2751.5,2751.4,0.1827594]
[1739792141047,0.1488,2751.5,2751.3,3.63461]
[1739792141228,0.1488,2751.5,2751.4,0.1827594]
[1739792142543,0.1488,2751.5,2751.2,0.8268]
[1739792142845,4.53738,2751.5,2751.1,3.40034594]
[1739792143159,4.53738,2751.5,2751.3,0.1827594]
[1739792143338,4.53738,2751.5,2751.2,0.18280767]
[1739792143543,4.53738,2751.5,2751.0,3.63497]
[1739792143718,4.53738,2751.5,2751.3,0.18280767]
[1739792143912,4.53738,2751.5,2751.0,3.63497]
[1739792143913,8.17188,2751.5,2751.0,3.63497]
[1739792144117,8.17938,2751.5,2751.4,0.18266975]
[1739792144321,3.63455,2751.4,2750.9,4.44425]
[1739792144515,4.54488,2751.5,2750.9,5.70663545]
[1739792144711,3.63472,2751.3,2750.9,0.8091]
[1739792144916,3.63472,2751.3,2750.8,7.03560594]
[1739792144917,3.63472,2751.3,2750.8,3.40034594]
[1739792145218,3.6348,2751.2,2750.8,3.40034594]
[1739792145658,3.63497,2751.1,2750.6,3.63552]
[1739792145835,4.40177,2751.1,2750.6,3.63552]
[1739792146167,4.40177,2751.1,2750.7,3.63542]
[1739792146465,4.40177,2751.1,2750.7,0.18269043]
[1739792149375,0.7668,2751.1,2750.7,3.81810043]
[1739792150159,0.7668,2751.1,2750.7,0.18269043]
[1739792150547,4.40175,2751.1,2750.7,0.18269043]
[1739792151002,3.63504,2751.0,2750.7,0.18269043]
[1739792151289,4.40175,2751.1,2750.5,8.26573053]
[1739792151490,4.40175,2751.1,2750.8,0.18269043]
[1739792151785,4.40175,2751.1,2750.6,3.63556]
[1739792152089,3.63518,2750.9,2750.5,4.21344594]
[1739792152290,0.8055,2750.8,2750.7,0.18269043]
[1739792152498,0.8055,2750.8,2750.1,0.74627734]
[1739792152499,3.015,2750.7,2750.6,0.16985882]
[1739792152639,3.8095,2750.7,2749.8,0.8002]
[1739792152838,3.63612,2750.2,2749.8,0.8002]
[1739792153091,3.63612,2750.2,2749.8,1.2439]
[1739792153455,3.63612,2750.2,2749.5,0.7874]
[1739792153657,3.63629,2750.1,2749.5,4.42438]
[1739792154075,7.2723,2750.2,2749.6,3.63682]
[1739792154278,3.0,2750.2,2749.8,3.6366]
[1739792154447,3.0,2750.2,2749.6,7.03716594]
[1739792154646,3.0,2750.2,2749.7,4.41911659]
[1739792155757,3.0,2750.2,2749.7,0.78245659]
[1739792155941,6.63617,2750.2,2749.7,0.78245659]
[1739792156570,3.63626,2750.1,2749.7,0.78245659]
[1739792156774,3.0,2750.2,2749.7,4.41917659]
[1739792157290,7.43047,2750.3,2749.8,4.78213225]
[1739792158180,5.24,2750.4,2749.8,4.78213225]
[1739792158685,3.63603,2750.3,2749.8,4.78213225]
[1739792159480,3.63603,2750.3,2749.8,1.14563225]
[1739792159849,0.015,2749.9,2749.5,0.7874]
[1739792160183,3.6516,2749.9,2749.5,0.7874]
[1739792160687,3.63696,2749.6,2749.2,4.18314594]
[1739792161366,3.63696,2749.6,2749.3,0.15182272]
[1739792161885,3.63668,2749.8,2749.4,0.15182272]
[1739792161886,0.82,2749.7,2749.4,0.15182272]
[1739792162042,0.82,2749.7,2749.2,4.42021]
[1739792162243,0.82,2749.7,2749.5,0.15182272]
[1739792162472,0.82,2749.7,2749.2,4.42021]
[1739792162673,0.82,2749.7,2749.6,0.15182272]
[1739792162877,0.82,2749.7,2749.2,4.42021]
[1739792163188,4.45683,2749.7,2749.6,0.15182272]
[1739792163381,3.63689,2749.6,2749.2,0.7828]
[1739792163590,4.45676,2749.7,2749.2,4.42019]
[1739792163989,3.63691,2749.6,2749.2,0.7828]
[1739792164185,4.45678,2749.7,2749.2,4.42015]
[1739792164398,0.82,2749.7,2749.2,0.7828]
[1739792164550,0.82,2749.7,2749.3,3.63727]
[1739792165584,4.45676,2749.7,2749.2,4.42021]
[1739792165791,4.45676,2749.7,2749.2,4.42012]
[1739792165988,0.82,2749.7,2749.3,3.63727]
[1739792166690,4.45681,2749.7,2749.2,4.4202]
[1739792166983,6.6515,2749.9,2749.3,3.63717]
[1739792167186,6.6515,2749.9,2749.5,3.63693]
[1739792167187,3.015,2749.9,2749.5,3.63693]
[1739792167963,6.65157,2749.9,2749.4,3.63714]
[1739792169066,3.015,2749.9,2749.5,3.63701]
[1739792169391,3.015,2749.9,2749.3,3.67364861]
[1739792169392,3.0,2749.8,2749.3,3.63719]
[1739792169689,3.0,2749.8,2749.4,3.63708]
[1739792169919,3.0075,2749.9,2749.5,3.63697]
[1739792170401,3.0075,2749.9,2749.4,3.63708]
[1739792171404,6.0705,2750.0,2749.3,0.76511293]
[1739792171405,5.24,2750.0,2749.7,3.63663]
[1739792171608,3.63612,2750.2,2749.8,0.363663]
[1739792172588,3.63612,2750.2,2749.6,3.63689]
[1739792172793,3.63623,2750.1,2749.6,3.63689]
[1739792173304,3.63612,2750.2,2749.6,3.63679]
[1739792173524,3.63612,2750.2,2749.7,3.63673]
[1739792173713,0.832,2750.3,2749.6,3.63679]
[1739792173868,3.63618,2750.2,2749.6,7.27361]
[1739792174206,3.63618,2750.2,2749.7,3.63675]
[1739792175113,4.46799,2750.3,2749.8,3.63653]
[1739792175617,3.63612,2750.2,2749.7,3.63675]
[1739792176109,3.63591,2750.4,2749.9,3.63648]
[1739792176819,3.63591,2750.4,2750.0,0.15291615]
[1739792177114,8.1111,2750.5,2750.0,4.24814577]
[1739792177329,3.63584,2750.4,2750.0,0.15291615]
[1739792177728,4.47529,2750.5,2750.0,0.15291615]
[1739792177729,0.8395,2750.5,2750.0,0.15291615]
[1739792178032,3.63607,2750.3,2749.8,4.43686]
[1739792178227,3.63607,2750.3,2750.1,0.1527029]
[1739792178430,3.63609,2750.2,2749.8,0.8003]
[1739792178632,3.63657,2749.9,2749.4,4.40105]
[1739792178993,3.63657,2749.9,2749.4,8.03814]
[1739792179197,3.63657,2749.9,2749.5,3.63701]
[1739792179429,3.7559,2750.1,2749.5,3.63701]
[1739792179633,3.63637,2750.0,2749.5,3.63701]
[1739792180907,3.63637,2750.0,2749.5,3.63694]
[1739792181122,3.64408,2749.9,2749.4,0.7639]
[1739792181438,3.63674,2749.8,2749.2,3.63739]
[1739792181634,3.63674,2749.8,2749.2,6.11249568]
[1739792181997,3.63683,2749.7,2749.2,0.8031]
[1739792182899,3.63649,2749.9,2749.3,3.63718]
[1739792183098,3.63649,2749.9,2749.4,3.63708]
[1739792184397,3.63663,2749.8,2749.3,3.63718]
[1739792184611,3.63649,2749.9,2749.2,0.8031]
[1739792184872,3.63676,2749.7,2749.2,4.44051]
[1739792185080,3.63676,2749.7,2749.2,5.63557762]
[1739792185240,3.63649,2749.9,2749.3,3.63721]
[1739792185440,3.63649,2749.9,2749.4,3.63702]
[1739792185974,3.63649,2749.9,2749.3,3.63721]
[1739792186172,3.63663,2749.8,2749.3,3.63721]
[1739792186531,3.63683,2749.7,2749.2,5.63557762]
[1739792186736,3.63683,2749.7,2749.2,1.99816762]
[1739792186950,3.63683,2749.7,2749.2,5.63554762]
[1739792187148,3.64446,2749.6,2749.2,0.8031]
[1739792188276,0.0075,2749.6,2749.2,0.8031]
[1739792188580,3.64439,2749.6,2749.2,0.8031]
[1739792189464,3.63702,2749.5,2749.1,3.63748]
[1739792190985,0.0075,2749.6,2749.1,3.63748]
[1739792191189,3.64442,2749.6,2749.1,3.63748]
[1739792191485,3.64442,2749.6,2749.2,0.15289554]
[1739792196899,3.63716,2749.4,2749.2,0.15289554]
[1739792197195,3.63716,2749.4,2749.0,4.41567]
[1739792197390,3.65216,2749.4,2749.3,0.15298498]
[1739792197603,7.28941,2749.4,2749.0,0.778]
[1739792197813,7.28941,2749.4,2749.3,0.15298498]
[1739792197978,3.63757,2749.1,2748.7,0.7572]
[1739792198358,0.015,2749.2,2748.8,0.15321203]
[1739792198552,3.65243,2749.2,2748.8,0.15321203]
[1739792198757,0.015,2749.2,2748.7,4.39527]
[1739792199058,3.63755,2749.1,2748.7,4.39527]
[1739792199369,3.63755,2749.1,2748.8,0.14778979]
[1739792199766,3.63755,2749.1,2748.7,0.7572]
[1739792199981,3.63755,2749.1,2748.9,0.14778979]
[1739792200193,3.63755,2749.1,2748.7,0.7572]
[1739792200393,3.63755,2749.1,2749.0,0.14778979]
[1739792200592,3.63755,2749.1,2748.7,0.7572]
[1739792200797,3.63755,2749.1,2749.0,0.14778979]
[1739792200984,3.63755,2749.1,2748.7,0.7572]
[1739792201187,3.65243,2749.2,2749.0,0.14778979]
[1739792201386,0.015,2749.2,2748.7,0.7572]
[1739792201761,0.015,2749.2,2748.8,0.14778979]
[1739792201762,3.63756,2749.1,2748.8,0.14778979]
[1739792201986,4.46897,2749.0,2748.8,0.14778979]
[1739792202189,4.46897,2749.0,2748.6,3.63821]
[1739792202463,4.47647,2749.0,2748.4,0.7957]
[1739792202664,4.47647,2749.0,2748.7,0.14778979]
[1739792202899,4.47647,2749.0,2748.4,4.43408]
[1739792203057,4.47647,2749.0,2748.8,0.14778979]
[1739792203261,4.47647,2749.0,2748.5,3.63832]
[1739792203570,4.47647,2749.0,2748.9,0.14778979]
[1739792203902,0.015,2748.9,2748.4,4.43408]
[1739792204074,3.65283,2748.9,2748.4,4.43408]
[1739792204896,3.65283,2748.9,2748.5,3.63833]
[1739792206206,7.40117,2749.3,2748.5,0.78343759]
[1739792206407,7.40117,2749.3,2748.8,4.38862]
[1739792206565,3.65243,2749.2,2748.8,0.7507]
[1739792207007,3.65243,2749.2,2748.9,0.14778979]
[1739792207608,3.63758,2749.1,2748.9,0.14778979]
[1739792207903,3.63758,2749.1,2748.6,4.38888]
[1739792208063,6.63758,2749.1,2749.0,0.14778979]
[1739792208264,6.63758,2749.1,2748.6,4.3889]
[1739792208502,0.015,2749.0,2748.4,0.7507]
[1739792208703,3.65275,2749.0,2748.4,4.38905]
[1739792208869,3.65275,2749.0,2748.5,3.63831]
[1739792209908,3.0,2749.1,2748.8,0.7792]
[1739792210468,3.0,2749.0,2748.4,0.7792]
[1739792210777,3.63814,2748.7,2748.4,0.7792]
[1739792211214,3.0,2749.0,2748.4,0.7792]
[1739792211517,0.7822,2749.3,2748.8,3.63786]
[1739792211688,4.91359749,2749.5,2749.0,3.63765]
[1739792211876,0.49437749,2749.5,2749.0,3.63762]
[1739792212223,3.63692,2749.6,2749.0,3.63762]
[1739792212376,3.63692,2749.6,2748.9,0.7741]
[1739792212577,3.63717,2749.4,2748.9,4.41189]
[1739792212775,3.63692,2749.6,2749.0,3.63765]
[1739792213020,3.63711,2749.5,2749.0,3.63765]
[1739792213576,3.63692,2749.6,2749.0,3.63765]
[1739792213805,3.63692,2749.6,2749.0,4.078775]
[1739792214009,3.63704,2749.5,2749.0,0.441175]
[1739792214209,3.63723,2749.4,2748.9,4.4119]
[1739792215490,0.015,2749.4,2748.9,0.7741]
[1739792216490,3.63731,2749.3,2748.9,0.7741]
[1739792216696,3.63731,2749.3,2748.7,3.63806]
[1739792216892,3.63766,2749.1,2748.6,0.7502]
[1739792217415,3.65261,2749.1,2748.6,0.7502]
[1739792217622,3.65261,2749.1,2748.6,4.38828]
[1739792218383,7.29025,2749.1,2748.6,4.38828]